bitfinex/quotes_ETHUSD_20250801
["timestamp","ask_amount","ask_price","bid_price","bid_amount"]
[1754076480644,6.798,3534.3,3534.2,28.14539865]
[1754076480952,11.664,3534.3,3534.2,26.96598365]
[1754076481377,11.664,3534.3,3534.2,25.46235465]
[1754076481542,4.866,3534.3,3534.2,22.86458541]
[1754076481748,1.826,3535.3,3534.9,2.82890248]
[1754076481986,1.826,3535.3,3534.3,3.0]
[1754076481987,4.865,3535.2,3535.1,2.82877429]
[1754076482166,1.826,3536.0,3535.1,30.0]
[1754076482337,6.798,3536.3,3535.4,15.193967]
[1754076482683,0.001,3536.9,3536.8,14.965104]
[1754076482981,0.001,3536.9,3536.8,16.23030861]
[1754076483183,4.866,3536.9,3536.8,8.676358]
[1754076483367,4.866,3536.9,3536.8,5.326372]
[1754076483534,5.3069,3536.9,3536.8,5.587589]
[1754076483739,5.3069,3536.9,3535.7,3.0]
[1754076483740,7.66359,3536.9,3535.7,3.0]
[1754076483940,0.03534268,3536.8,3535.4,0.5160127]
[1754076484233,10.49097719,3536.9,3536.2,11.16396798]
[1754076484444,0.849525,3536.4,3536.1,3.0]
[1754076484652,4.864,3536.3,3536.2,5.441352]
[1754076484835,0.55,3536.2,3535.6,2.022871]
[1754076485071,0.55,3536.0,3535.2,5.82862704]
[1754076485235,0.55,3535.8,3535.5,2.82844335]
[1754076485580,0.4409,3536.8,3535.9,2.82813427]
[1754076485782,0.55,3536.7,3536.2,2.82789326]
[1754076486009,0.4409,3536.6,3536.0,2.82805005]
[1754076486146,0.55,3536.5,3536.0,23.44622414]
[1754076486361,0.9909,3536.5,3535.8,26.955192]
[1754076486553,0.55,3536.3,3535.8,6.689454]
[1754076486738,0.55,3536.3,3535.9,5.87461765]
[1754076486939,0.4409,3537.1,3536.4,10.938836]
[1754076487163,4.863,3536.8,3535.4,0.20958846]
[1754076487382,0.55,3536.7,3535.7,3.0]
[1754076487584,1.37413474,3536.7,3536.1,11.523422]
[1754076487780,1.40947842,3536.7,3535.8,22.661793]
[1754076488092,0.55,3536.5,3536.1,3.374352]
[1754076488301,0.55,3536.3,3536.1,16.92086213]
[1754076488471,0.55,3536.3,3536.1,6.998077]
[1754076488668,0.55,3536.3,3536.0,9.98980484]
[1754076488870,0.55,3536.3,3536.1,2.972921]
[1754076489073,0.82413474,3536.7,3535.8,30.0]
[1754076489272,5.412,3536.6,3536.0,2.8279785]
[1754076489901,5.412,3536.6,3536.2,5.94862459]
[1754076490069,4.65347023,3536.8,3535.9,2.82808399]
[1754076490070,0.55,3536.7,3535.9,2.82808399]
[1754076490255,4.861,3536.6,3536.2,3.0]
[1754076490459,0.001,3536.9,3536.7,7.49286]
[1754076490663,0.001,3536.9,3536.8,2.82741461]
[1754076490895,4.862,3536.9,3536.8,12.65705061]
[1754076491203,4.862,3536.9,3536.8,6.49714061]
[1754076491495,4.862,3536.9,3536.7,7.717053]
[1754076491694,4.862,3536.9,3536.8,6.92178661]
[1754076492000,4.862,3536.9,3536.8,2.399805]
[1754076492307,4.862,3536.9,3536.6,2.82756468]
[1754076492593,4.862,3536.9,3536.6,7.30975936]
[1754076492794,4.862,3536.9,3536.7,4.055512]
[1754076492984,4.862,3536.9,3536.7,3.01126]
[1754076493180,4.862,3536.9,3536.6,7.05583397]
[1754076493405,4.862,3536.9,3536.7,5.42553722]
[1754076493560,5.412,3536.9,3536.8,2.970996]
[1754076493764,5.412,3536.9,3536.7,3.720269]
[1754076493958,5.412,3536.9,3536.8,4.04058]
[1754076494162,0.001,3536.9,3536.8,6.86799461]
[1754076494491,0.001,3536.9,3536.8,37.49930246]
[1754076494800,0.001,3536.9,3536.8,37.55090246]
[1754076495001,0.001,3536.9,3536.8,37.49930246]
[1754076495197,0.001,3536.9,3536.8,36.52975243]
[1754076496491,0.001,3536.9,3536.8,36.58135243]
[1754076496699,1e-08,3537.3,3537.2,5.82709487]
[1754076496998,1e-08,3537.3,3537.2,35.82709487]
[1754076497301,4.858,3539.0,3538.5,32.82605623]
[1754076497594,4.858,3539.0,3538.5,28.12554923]
[1754076497958,4.858,3539.0,3538.5,28.33928606]
[1754076498304,4.858,3539.0,3538.5,36.03979306]
[1754076498460,1e-08,3538.6,3538.5,36.09139306]
[1754076498799,1e-08,3538.6,3538.5,15.76212706]
[1754076499175,1e-08,3538.6,3538.5,12.77177806]
[1754076499358,1e-08,3538.6,3538.5,15.10943906]
[1754076499562,1e-08,3538.6,3538.5,9.08283083]
[1754076499858,4.85700001,3538.6,3538.5,11.90888706]
[1754076500060,5.40700001,3538.6,3538.5,3.21373683]
[1754076500260,2.82618833,3538.4,3537.5,30.0]
[1754076500491,0.55,3538.2,3538.1,2.433969]
[1754076500801,0.43340001,3538.6,3538.2,24.037427]
[1754076501020,5.406,3538.5,3538.3,19.655663]
[1754076501303,4.855,3538.4,3538.3,11.962164]
[1754076501484,0.55,3538.3,3538.1,3.0]
[1754076501661,0.55,3538.3,3536.9,3.0]
[1754076501662,0.55,3538.1,3537.2,2.82708734]
[1754076501862,0.55,3538.1,3537.8,11.074801]
[1754076502084,0.55,3538.1,3537.8,6.710761]
[1754076502255,2.3866,3538.0,3537.6,2.306152]
[1754076502460,0.55,3538.3,3537.8,16.15214999]
[1754076502684,0.55,3538.1,3537.9,5.369455]
[1754076502995,0.55,3538.1,3537.7,3.0]
[1754076503196,1.9532,3538.3,3538.0,13.219476]
[1754076503197,0.55,3538.3,3538.0,13.219476]
[1754076503356,0.55,3538.1,3537.1,0.21587816]
[1754076503562,3.37637574,3538.1,3537.8,2.511822]
[1754076503857,3.37637574,3538.1,3537.5,2.82684921]
[1754076503858,4.854,3538.0,3537.5,27.530705]
[1754076504062,4.854,3538.0,3537.8,3.0]
[1754076504296,4.854,3538.0,3537.9,11.476782]
[1754076504599,4.854,3538.0,3537.9,21.708409]
[1754076504814,4.854,3538.0,3537.9,20.814726]
[1754076505104,1e-08,3538.6,3538.1,2.82637573]
[1754076505256,1e-08,3538.6,3538.5,31.52802023]
[1754076505696,1e-08,3538.6,3538.5,35.82605623]
[1754076507696,1e-08,3538.6,3538.5,5.82605623]
[1754076507908,1e-08,3539.0,3538.9,2.82573681]
[1754076508209,1e-08,3539.0,3538.9,36.05728211]
[1754076508406,0.4334,3540.9,3540.8,2.82422051]
[1754076508576,0.4334,3540.9,3540.7,2.82423775]
[1754076508577,7.2386,3540.9,3540.7,2.82423775]
[1754076508903,4.852,3540.9,3540.8,4.881047]
[1754076509105,4.852,3540.9,3540.7,2.8242957]
[1754076509306,0.4334,3541.7,3540.8,30.0]
[1754076509508,0.4334,3541.7,3540.9,3.0]
[1754076509716,2.3866,3541.5,3541.1,26.044329]
[1754076509863,4.85,3541.6,3541.5,18.25405428]
[1754076510059,4.85,3541.6,3541.5,11.1319]
[1754076510399,4.85,3541.6,3541.5,2.82366228]
[1754076510584,4.85,3541.6,3541.4,7.775001]
[1754076510785,4.85,3541.5,3541.4,10.775001]
[1754076511004,4.85,3541.5,3541.4,5.82371625]
[1754076511225,6.8032,3541.5,3541.4,3.0]
[1754076511427,0.55,3541.4,3541.2,2.370752]
[1754076511729,0.55,3541.4,3541.3,7.827345]
[1754076512023,0.55,3541.4,3540.3,0.70888]
[1754076512227,2.82388396,3541.3,3540.8,3.0]
[1754076512526,2.9366,3541.3,3541.2,3.0]
[1754076512731,2.9366,3541.3,3541.2,9.62766]
[1754076512884,0.55,3541.3,3541.2,3.0]
[1754076513086,5.398,3541.3,3541.2,3.0]
[1754076513389,9.04399076,3541.3,3541.2,3.0]
[1754076513592,9.04399076,3541.3,3540.8,0.20793577]
[1754076513593,0.55,3541.2,3540.8,0.20793577]
[1754076513792,0.55,3540.8,3539.2,22.74265]
[1754076513992,13.04646442,3541.3,3538.9,0.69029222]
[1754076513993,0.55,3540.6,3538.9,0.69029222]
[1754076514194,8.19846442,3541.3,3538.8,2.82575762]
[1754076514195,5.397,3540.5,3539.8,2.82494083]
[1754076514406,0.03530375,3540.7,3539.6,0.21128581]
[1754076514604,0.03530375,3540.7,3538.9,0.70499283]
[1754076514605,0.55,3540.4,3540.0,2.82485435]
[1754076514791,0.55,3540.2,3539.2,3.0]
[1754076515015,0.55,3540.2,3540.1,3.0]
[1754076515437,5.76129916,3540.2,3540.1,3.0]
[1754076515634,5.397,3540.2,3540.1,7.240342]
[1754076515808,5.397,3540.2,3540.1,3.0]
[1754076516009,7.7836,3540.2,3540.1,3.0]
[1754076516340,10.60829916,3540.2,3540.1,3.0]
[1754076517108,0.55,3540.3,3540.2,3.0]
[1754076517340,0.55,3540.3,3539.9,2.82488389]
[1754076517341,7.7826,3540.3,3539.9,7.118516]
[1754076517522,5.8294,3540.3,3539.8,5.8249687]
[1754076517725,4.846,3540.2,3539.8,2.82501097]
[1754076517932,4.846,3540.2,3539.9,2.453555]
[1754076518110,4.846,3540.2,3540.0,3.0]
[1754076518319,4.846,3540.2,3539.4,3.0]
[1754076518320,0.55,3539.9,3539.4,3.0]
[1754076518520,0.55,3539.9,3539.1,2.82556418]
[1754076518521,0.55,3539.7,3537.6,2.87759881]
[1754076518738,0.55,3539.2,3537.7,30.0]
[1754076518944,0.55,3539.0,3537.9,9.422881]
[1754076519100,0.55,3538.7,3536.5,7.37629542]
[1754076519302,2.82582311,3538.8,3536.8,2.82741461]
[1754076519303,0.55,3538.5,3536.8,2.82741461]
[1754076519534,0.5395,3538.4,3537.9,14.560363]
[1754076519739,0.55,3538.2,3537.9,3.0]
[1754076519935,0.55,3538.0,3537.9,17.8051]
[1754076520233,0.55,3538.0,3537.9,16.88328851]
[1754076520736,6.786,3538.3,3538.2,3.0]
[1754076520938,12.181,3538.3,3538.2,12.59638]
[1754076521157,12.181,3538.3,3536.6,2.82754673]
[1754076521158,0.55,3538.2,3537.0,32.82725473]
[1754076521460,2.10571722,3538.2,3537.7,5.062675]
[1754076521629,0.55,3538.0,3537.7,3.364721]
[1754076521826,0.55,3537.8,3537.7,6.364721]
[1754076522356,0.55,3537.8,3537.7,8.59556531]
[1754076525080,0.55,3537.9,3537.8,3.0]
[1754076525374,0.55,3537.9,3535.2,30.0]
[1754076525375,0.55,3536.9,3535.2,30.0]
[1754076525578,4.843,3536.8,3535.4,30.0]
[1754076525735,0.65,3536.9,3536.7,6.608086]
[1754076525934,0.1,3537.1,3537.0,3.0]
[1754076526160,0.55,3537.0,3536.9,11.529514]
[1754076526375,0.55,3537.0,3536.9,7.724604]
[1754076526742,0.55,3537.0,3536.9,6.22997]
[1754076526941,0.1,3536.9,3536.8,3.0]
[1754076527142,5.493,3536.9,3536.8,7.840852]
[1754076527433,5.493,3536.9,3536.4,2.325099]
[1754076527434,0.55,3536.8,3536.4,2.325099]
[1754076527782,6.10891194,3536.9,3535.9,3.03800171]
[1754076527783,0.55,3536.5,3535.9,3.03800171]
[1754076527931,0.55,3536.3,3535.9,3.03800171]
[1754076528133,0.55,3536.3,3536.2,5.82789434]
[1754076528355,5.393,3536.3,3536.1,3.0]
[1754076528593,5.393,3536.3,3535.8,5.82820917]
[1754076528750,5.393,3536.3,3535.9,2.82813014]
[1754076528946,0.1,3536.6,3536.2,7.46636134]
[1754076529240,5.492,3536.5,3536.4,11.61415541]
[1754076529577,5.392,3536.5,3536.4,12.60015541]
[1754076529733,6.789,3536.7,3536.6,35.8275745]
[1754076529934,6.789,3536.7,3536.6,17.1763465]
[1754076530276,11.631,3536.7,3536.6,20.3214645]
[1754076530479,6.789,3536.7,3536.6,24.9367785]
[1754076530780,11.631,3536.7,3533.8,1.43643639]
[1754076530935,0.1,3536.1,3535.8,2.82818013]
[1754076531136,5.391,3536.0,3534.2,30.0]
[1754076531385,0.55,3535.8,3534.6,2.82917444]
[1754076531677,6.89,3536.7,3535.3,30.0]
[1754076531852,0.55,3536.2,3535.8,2.82818703]
[1754076532048,0.55,3536.2,3536.0,3.0]
[1754076532290,0.55,3536.2,3534.7,7.65921286]
[1754076532291,0.65,3536.0,3534.7,0.28291744]
[1754076532496,0.55,3536.0,3535.8,2.82815337]
[1754076532693,0.65,3536.0,3535.7,3.0]
[1754076532856,0.65,3536.0,3535.9,3.0]
[1754076533051,0.1,3535.0,3534.4,2.82933454]
[1754076533367,4.842,3534.9,3534.8,18.20089277]
[1754076533565,4.842,3534.9,3534.7,2.82908896]
[1754076533900,5.392,3534.9,3534.8,2.700561]
[1754076534053,0.65,3534.8,3534.2,0.20762339]
[1754076534257,0.65,3534.8,3534.6,3.24827]
[1754076534594,0.1,3534.8,3534.7,32.3582754]
[1754076534753,0.1,3534.8,3534.5,2.8291868]
[1754076534754,4.841,3534.8,3534.6,2.82916541]
[1754076534950,4.941,3534.8,3534.2,0.2112957]
[1754076535153,4.941,3534.8,3534.7,5.1738574]
[1754076535397,0.55,3534.9,3534.8,2.82901437]
[1754076535603,5.491,3534.9,3534.8,19.07214237]
[1754076535770,5.391,3534.9,3534.8,10.871127]
[1754076535970,5.491,3534.9,3534.8,2.82901437]
[1754076536156,0.55,3534.9,3534.8,14.39151237]
[1754076536351,5.491,3534.9,3534.8,14.39151237]
[1754076536653,0.65,3534.9,3534.8,13.43299137]
[1754076536853,0.65,3534.9,3534.8,8.34418]
[1754076537105,5.491,3534.9,3534.8,14.17319437]
[1754076537254,0.65,3534.9,3534.8,14.17319437]
[1754076537455,5.491,3534.9,3534.8,14.17319437]
[1754076537664,5.491,3534.9,3534.8,15.465986]
[1754076537889,0.65,3534.9,3534.8,15.465986]
[1754076538280,5.8249,3534.9,3534.8,5.708301]
[1754076538670,5.8249,3534.9,3534.8,9.189853]
[1754076539088,5.8249,3534.9,3534.8,8.712853]
[1754076539253,5.8249,3534.9,3534.8,3.0]
[1754076539457,0.55,3534.6,3534.2,0.21265424]
[1754076539657,0.55,3534.2,3533.7,2.299904]
[1754076539896,0.55,3534.0,3533.9,2.82973485]
[1754076540104,0.55,3534.0,3533.9,12.75610485]
[1754076540262,0.1,3534.1,3533.9,0.21448716]
[1754076540463,0.1,3534.1,3534.0,8.241295]
[1754076540710,4.84,3534.1,3534.0,7.963995]
[1754076540877,4.94,3534.1,3534.0,10.79364978]
[1754076541567,0.65,3534.5,3534.1,3.0]
[1754076541759,1.70549,3534.9,3534.1,3.0]
[1754076541760,0.1,3534.9,3534.8,29.39103137]
[1754076542103,6.893,3535.1,3535.0,2.82885431]
[1754076542396,0.1,3535.3,3535.1,5.82876392]
[1754076542696,0.1,3534.9,3534.2,3.0]
[1754076542916,0.1,3534.9,3534.8,2.82901437]
[1754076543127,1.8603,3536.0,3534.2,0.87715055]
[1754076543128,3.26206175,3535.9,3535.1,3.0]
[1754076543404,6.794,3535.8,3535.6,3.0]
[1754076543576,0.55,3535.6,3535.3,3.0]
[1754076543787,0.1,3535.7,3535.5,5.82845424]
[1754076544105,6.794,3536.1,3536.0,28.02444729]
[1754076544258,12.183,3536.1,3536.0,28.02444729]
[1754076544467,11.633,3536.1,3536.0,28.02444729]
[1754076544692,0.5339,3536.7,3536.6,2.8275745]
[1754076544897,11.731,3536.7,3536.3,7.1315073]
[1754076545098,0.1,3536.5,3536.4,11.55898441]
[1754076545308,0.1,3536.5,3536.4,7.303207]
[1754076545475,4.938,3536.5,3536.4,7.303207]
[1754076545994,0.55,3536.2,3534.8,3.0]
[1754076546309,0.55,3535.7,3535.6,3.0]
[1754076546504,5.8219,3535.7,3535.6,8.829126]
[1754076546669,5.8219,3535.7,3535.6,5.829126]
[1754076546865,5.98019,3535.7,3535.6,8.114756]
[1754076547065,5.388,3535.7,3535.6,12.097956]
[1754076547313,5.488,3535.7,3535.6,12.097956]
[1754076547610,5.488,3535.7,3535.6,10.628856]
[1754076547970,0.65,3535.7,3535.6,10.628856]
[1754076548202,5.487,3535.7,3535.6,9.645656]
[1754076548568,5.487,3535.7,3535.6,6.759292]
[1754076548904,5.487,3535.7,3535.6,3.0]
[1754076549109,5.487,3535.7,3535.6,6.787058]
[1754076549407,0.65,3535.7,3535.6,6.787058]
[1754076549567,0.55,3535.7,3535.6,9.61543225]
[1754076549767,0.1,3535.9,3535.5,0.21138127]
[1754076549768,0.55,3535.8,3535.7,26.75263]
[1754076550067,5.8199,3535.8,3535.7,3.0]
[1754076550399,8.27219,3535.8,3533.8,2.82978459]
[1754076550608,0.65,3535.0,3534.9,2.82893434]
[1754076550813,0.55,3534.9,3534.0,30.0]
[1754076551147,0.55,3534.9,3534.8,13.517718]
[1754076551405,0.55,3534.8,3534.5,2.82919229]
[1754076551590,0.55,3534.8,3534.7,3.0]
[1754076551789,0.55,3534.8,3534.7,10.7371084]
[1754076551993,0.55,3534.8,3534.7,8.9599854]
[1754076552195,0.55,3534.8,3534.7,7.9475324]
[1754076552410,0.55,3534.8,3534.7,5.118438]
[1754076552584,0.55,3534.8,3534.7,7.9475324]
[1754076553108,0.55,3534.8,3534.7,12.3583254]
[1754076553317,0.55,3534.8,3534.7,11.7030144]
[1754076553520,0.55,3534.8,3534.7,6.148666]
[1754076553669,0.9839,3534.8,3534.7,8.562818]
[1754076553870,0.9839,3534.8,3534.7,3.0]
[1754076554382,0.9839,3534.8,3534.7,5.589116]
[1754076555127,0.9839,3534.8,3534.7,8.304641]
[1754076555300,0.9839,3534.8,3534.7,5.112641]
[1754076555633,7.16919796,3534.8,3534.7,3.0]
[1754076555797,7.16919796,3534.8,3533.8,0.20706993]
[1754076555798,0.55,3534.2,3533.8,0.20706993]
[1754076556008,0.1,3533.9,3533.4,29.67036]
[1754076556194,0.1,3533.3,3533.2,12.707069]
[1754076556396,4.932,3533.3,3532.9,2.83051807]
[1754076556637,4.932,3533.3,3532.6,0.21750185]
[1754076556638,0.55,3533.2,3533.1,12.967642]
[1754076556936,0.9878,3533.2,3533.0,2.99771746]
[1754076557110,0.9878,3533.2,3532.7,11.344214]
[1754076557292,0.9878,3533.2,3532.6,0.21750185]
[1754076557293,0.4378,3533.9,3533.0,4.737549]
[1754076557630,0.55,3533.3,3533.2,22.427037]
[1754076557812,0.55,3533.3,3533.2,21.978249]
[1754076557813,5.382,3533.3,3533.2,21.978249]
[1754076558016,5.382,3533.3,3533.2,24.80854448]
[1754076558344,6.795,3533.8,3533.2,24.70308176]
[1754076558494,6.795,3533.8,3533.7,3.0]
[1754076558693,11.727,3533.8,3533.7,3.0]
[1754076559015,0.1,3533.2,3533.0,20.333051]
[1754076559224,4.832,3533.1,3533.0,20.001335]
[1754076559404,3.3797428,3533.9,3532.7,2.83069606]
[1754076559405,0.55,3534.6,3532.7,30.0]
[1754076559591,4.831,3534.5,3534.4,32.82933454]
[1754076559791,0.1,3534.6,3534.5,28.869595]
[1754076560035,4.931,3534.6,3534.5,5.960839]
[1754076560189,4.931,3534.6,3534.5,8.79009349]
[1754076560393,4.831,3534.6,3534.5,8.79009349]
[1754076560594,4.931,3534.6,3534.5,14.455328]
[1754076560791,5.481,3534.6,3534.5,3.0]
[1754076561005,5.9188,3534.6,3534.5,3.0]
[1754076561193,5.9188,3534.6,3534.5,8.232112]
[1754076561418,5.9188,3534.6,3534.5,5.040112]
[1754076561619,5.9188,3534.6,3534.5,6.749074]
[1754076561940,6.79358243,3534.6,3534.5,3.0]
[1754076562239,6.79358243,3534.6,3534.5,5.824432]
[1754076562448,5.9188,3534.6,3534.5,8.672432]
[1754076563054,5.9188,3534.6,3534.5,8.087116]
[1754076563213,10.55007444,3534.6,3534.5,3.0]
[1754076563408,10.55007444,3534.6,3534.1,0.21009515]
[1754076563409,0.55,3534.2,3534.1,0.21009515]
[1754076563609,0.1,3534.0,3533.9,2.084549]
[1754076563824,0.1,3534.0,3533.9,4.91428385]
[1754076564037,5.38,3534.2,3534.1,7.482158]
[1754076564038,5.48,3534.2,3534.1,7.482158]
[1754076564223,5.479,3534.2,3534.1,16.096218]
[1754076564527,0.1,3534.2,3534.1,18.92579271]
[1754076564727,0.1,3534.5,3534.4,27.53215454]
[1754076564927,0.1,3534.5,3534.4,30.53215454]
[1754076565262,0.1,3534.5,3534.2,2.82942595]
[1754076565263,0.1,3534.8,3534.7,35.8290944]
[1754076565411,4.928,3534.8,3534.7,29.325584]
[1754076565616,4.928,3534.8,3534.7,17.278212]
[1754076565809,4.928,3534.8,3534.7,25.6070584]
[1754076566209,4.928,3534.8,3534.7,31.5259144]
[1754076566662,0.65,3535.3,3534.7,31.69682]
[1754076566828,0.1,3535.3,3535.2,2.82869427]
[1754076567019,6.795,3535.5,3535.2,2.82869427]
[1754076567020,6.895,3535.5,3535.4,27.49912725]
[1754076567248,11.722,3535.5,3535.4,30.85186725]
[1754076567460,11.722,3535.5,3535.4,22.18928825]
[1754076567969,0.1,3535.3,3534.3,2.82936012]
[1754076568262,4.827,3535.2,3535.0,3.0]
[1754076568776,4.827,3535.2,3534.8,3.0]
[1754076568777,5.2648,3535.2,3535.1,9.87422229]
[1754076568970,4.827,3535.2,3535.1,5.82877429]
[1754076569263,0.1,3535.3,3535.2,19.51921427]
[1754076569440,5.475,3535.3,3535.2,5.516034]
[1754076569633,0.1,3535.1,3535.0,2.82885431]
[1754076569839,0.1,3535.1,3534.6,3.0]
[1754076570044,4.825,3535.0,3534.9,20.26336393]
[1754076570372,4.825,3535.0,3533.5,4.827]
[1754076570373,0.1,3534.4,3533.4,25.314722]
[1754076570673,4.825,3534.3,3534.2,2.82949465]
[1754076570843,4.825,3534.3,3534.2,32.82949465]
[1754076571041,4.825,3534.3,3534.2,34.44800865]
[1754076571240,0.1,3534.4,3534.2,29.98752465]
[1754076571432,0.1,3534.4,3534.3,27.85735359]
[1754076572143,0.1,3535.1,3534.6,30.0]
[1754076572344,0.1,3535.1,3534.9,2.82893434]
[1754076572669,0.1,3535.1,3535.0,19.05084831]
[1754076572873,0.001,3535.4,3535.3,2.82861426]
[1754076573043,0.001,3535.4,3535.3,8.56780827]
[1754076573244,4.824,3535.4,3535.3,35.82861426]
[1754076573435,0.001,3535.4,3535.3,35.82861426]
[1754076573630,4.824,3535.4,3535.3,35.82861426]
[1754076573868,0.001,3535.4,3535.3,35.82861426]
[1754076574171,0.001,3535.4,3535.3,5.82861426]
[1754076574172,4.823,3535.4,3535.3,5.82861426]
[1754076574332,0.001,3535.4,3535.3,6.97723054]
[1754076574534,4.823,3535.4,3535.3,36.97723054]
[1754076574829,4.823,3535.4,3535.3,37.19402287]
[1754076575028,4.823,3535.4,3534.9,5.518806]
[1754076575029,0.55,3535.3,3534.9,5.518806]
[1754076575279,0.1,3534.9,3534.8,2.82901437]
[1754076575442,4.921,3534.9,3534.8,17.879331]
[1754076575773,4.921,3534.9,3534.7,14.800336]
[1754076575974,4.921,3534.9,3534.8,17.374777]
[1754076576150,2.4521,3534.8,3534.3,7.265967]
[1754076576472,0.1,3534.5,3534.4,3.0]
[1754076576672,0.1,3534.4,3534.2,10.897745]
[1754076576881,4.82,3534.3,3534.0,2.82963485]
[1754076577080,4.82,3534.3,3534.2,30.0]
[1754076577235,4.82,3534.3,3534.1,30.0]
[1754076577548,4.82,3534.3,3534.2,26.34717]
[1754076577754,4.82,3534.3,3534.2,14.576694]
[1754076578185,4.82,3534.3,3534.2,17.40618865]
[1754076578332,7.344,3534.8,3534.5,33.0]
[1754076578333,0.1,3534.6,3534.5,33.0]
[1754076578537,4.919,3534.6,3534.5,33.0]
[1754076579581,7.7089,3534.6,3534.5,8.649589]
[1754076579780,3.37941459,3534.3,3533.1,30.0]
[1754076579964,0.1,3533.3,3533.1,2.768725]
[1754076580164,4.818,3533.2,3532.9,23.8762453]
[1754076580472,0.1,3533.1,3532.9,22.421361]
[1754076580786,0.1,3533.1,3532.9,3.0]
[1754076581087,0.1,3532.9,3532.7,2.229156]
[1754076581279,4.818,3532.8,3532.7,2.229156]
[1754076581448,0.1,3532.4,3531.9,22.183415]
[1754076581657,0.1,3532.1,3531.9,20.514088]
[1754076581954,0.1,3532.1,3532.0,35.83125707]
[1754076582147,0.1,3532.1,3532.0,32.83125707]
[1754076582352,0.1,3532.1,3532.0,30.0]
[1754076582640,4.918,3532.3,3532.2,2.83109676]
[1754076582954,4.817,3532.3,3532.2,38.55592952]
[1754076583282,0.1,3533.0,3532.9,2.83053582]
[1754076583441,4.917,3533.0,3532.9,32.83053582]
[1754076583642,4.917,3533.0,3532.9,30.0]
[1754076583944,4.917,3533.0,3532.9,32.83053582]
[1754076584140,6.795,3533.2,3533.1,35.83037559]
[1754076584449,11.612,3533.2,3533.1,35.83037559]
[1754076584853,11.612,3533.2,3533.1,22.75166759]
[1754076585269,11.712,3533.2,3533.1,21.01771259]
[1754076585780,11.712,3533.2,3533.1,5.83037559]
[1754076586346,11.612,3533.2,3533.1,6.69645998]
[1754076586546,0.1,3533.8,3533.7,2.82989501]
[1754076586750,6.796,3534.5,3534.4,2.82933454]
[1754076586956,11.611,3534.5,3534.4,2.82933454]
[1754076587159,11.711,3534.5,3534.4,2.82933454]
[1754076587485,0.1,3535.0,3534.5,2.82925449]
[1754076587646,4.815,3534.9,3534.8,3.0]
[1754076587957,0.001,3535.4,3535.1,5.82871057]
[1754076587958,0.1,3535.2,3535.1,5.82871057]
[1754076588152,4.815,3535.2,3535.1,5.82871057]
[1754076588390,4.915,3535.2,3535.1,5.82871057]
[1754076588551,4.815,3535.2,3535.1,5.82871057]
[1754076588789,4.915,3535.2,3535.1,5.82871057]
[1754076588991,4.815,3535.2,3535.1,5.82871057]
[1754076589374,0.001,3535.4,3535.3,2.82861426]
[1754076589608,4.815,3535.4,3535.3,2.82861426]
[1754076590011,4.915,3535.4,3535.3,2.82861426]
[1754076590212,4.815,3535.4,3535.3,2.82861426]
[1754076591422,4.915,3535.4,3535.3,5.82861426]
[1754076591600,0.101,3535.4,3535.3,5.82861426]
[1754076591804,4.813,3535.4,3535.3,5.82861426]
[1754076592104,4.913,3535.4,3535.3,5.82861426]
[1754076593117,4.913,3535.4,3535.3,5.67861426]
[1754076593920,0.101,3535.4,3535.3,5.67861426]
[1754076594122,4.911,3535.4,3535.3,5.67861426]
[1754076594305,5.3772,3535.4,3535.3,3.0]
[1754076594683,5.2772,3535.4,3535.3,3.0]
[1754076594885,5.3772,3535.4,3535.3,3.0]
[1754076595699,0.5672,3535.4,3535.3,5.82861426]
[1754076595883,5.3762,3535.4,3535.3,5.82861426]
[1754076596220,5.3762,3535.4,3535.3,3.0]
[1754076596955,5.3762,3535.4,3535.0,2.82885365]
[1754076597250,0.1,3535.0,3534.9,2.82893434]
[1754076597416,4.908,3535.0,3534.9,2.82893434]
[1754076598026,4.907,3535.0,3534.9,2.82893434]
[1754076598724,0.1,3535.3,3535.1,2.82873288]
[1754076599058,0.1,3535.3,3535.2,2.82869427]
[1754076599346,4.906,3535.3,3535.2,2.82869427]
[1754076600245,0.5662,3535.3,3535.2,0.01436325]
[1754076600446,0.5662,3535.3,3533.7,2.82984227]
[1754076600447,0.1,3534.2,3534.1,2.82957471]
[1754076600645,0.1,3533.3,3533.0,2.8304513]
[1754076600851,0.1,3532.9,3532.1,8.937761]
[1754076601059,0.1,3532.9,3532.8,2.83061594]
[1754076601208,0.1,3533.4,3533.1,2.83037559]
[1754076601412,0.1,3533.3,3533.2,0.01440328]
[1754076601612,4.804,3533.3,3533.2,2.84469876]
[1754076601817,6.795,3534.2,3534.1,5.82957471]
[1754076602049,6.795,3534.2,3533.2,3.88191229]
[1754076602050,11.599,3534.2,3533.2,0.86750901]
[1754076602261,0.1,3533.5,3533.4,2.83013528]
[1754076602429,0.1,3534.1,3534.0,8.09277978]
[1754076602632,4.904,3534.1,3534.0,5.82965478]
[1754076602965,6.795,3534.2,3534.1,25.06469971]